fUSD/lending_fUSD_20240227
["ID","MTS","AMOUNT","RATE_DAILY","PERIOD"]
[315449953,1709040654357,-573.19,0.00022997,2]
[315449954,1709040654366,-625.4,0.00022997,2]
[315449955,1709040654375,-562.98,0.00022997,2]
[315449956,1709040654384,-500.0,0.00022997,2]
[315449957,1709040654394,-150.0,0.00022997,2]
[315449958,1709040654403,-500.0,0.00022997,2]
[315449959,1709040654412,-500.0,0.00022997,2]
[315449960,1709040654424,-500.0,0.00022997,2]
[315449961,1709040654433,-500.0,0.00022997,2]
[315449962,1709040654442,-500.0,0.00022997,2]
[315449963,1709040654451,-500.0,0.00022997,2]
[315449964,1709040654460,-500.0,0.00022997,2]
[315449965,1709040654469,-500.0,0.00022997,2]
[315449966,1709040654478,-615.8973707,0.00022997,2]
[315449967,1709040654487,-500.0,0.00022997,2]
[315449968,1709040654497,-509.98193815,0.00022997,2]
[315449969,1709040654506,-500.0,0.00022997,2]
[315449970,1709040654515,-500.0,0.00022997,2]
[315449971,1709040654524,-562.09,0.00022997,2]
[315449972,1709040654534,-500.0,0.00022997,2]
[315449973,1709040654544,-500.0,0.00022997,2]
[315449974,1709040654553,-500.0,0.00022997,2]
[315449975,1709040654562,-500.0,0.00022997,2]
[315449976,1709040654573,-500.0,0.00022997,2]
[315449977,1709040654583,-500.0,0.00022997,2]
[315449978,1709040654592,-196.81089898,0.00022997,2]
[315449979,1709040654602,-500.0,0.00022997,2]
[315449980,1709040654611,-500.0,0.00022997,2]
[315449981,1709040654619,-278.84128231,0.00022997,2]
[315449982,1709040654629,-666.4,0.00022997,2]
[315449983,1709040654638,-500.0,0.00022997,2]
[315449984,1709040654647,-500.0,0.00022997,2]
[315449985,1709040654656,-500.0,0.00022997,2]
[315449986,1709040654667,-500.0,0.00022997,2]
[315449987,1709040654677,-213.63940303,0.00022997,2]
[315449988,1709040654686,-592.81,0.00022997,2]
[315449989,1709040654695,-500.0,0.00022997,2]
[315449990,1709040654704,-500.0,0.00022997,2]
[315449991,1709040654713,-500.0,0.00022997,2]
[315449992,1709040654722,-500.0,0.00022997,2]
[315449993,1709040654732,-500.0,0.00022997,2]
[315449994,1709040654741,-500.0,0.00022997,2]
[315449995,1709040654750,-500.0,0.00022997,2]
[315449996,1709040654759,-535.66970801,0.00022997,2]
[315449997,1709040654769,-500.0,0.00022997,2]
[315449998,1709040654777,-556.97,0.00022997,2]
[315449999,1709040654787,-500.0,0.00022997,2]
[315450000,1709040654796,-531.34922033,0.00022997,2]
[315450001,1709040654806,-545.19000001,0.00022997,2]
[315450002,1709040654815,-500.0,0.00022997,2]
[315450003,1709040654826,-500.0,0.00022997,2]
[315450004,1709040654837,-586.99738664,0.00022997,2]
[315450005,1709040654849,-500.0,0.00022997,2]
[315450006,1709040654980,-500.0,0.00022997,2]
[315450007,1709040654990,-500.0,0.00022997,2]
[315450008,1709040654999,-500.0,0.00022997,2]
[315450009,1709040655009,-725.34,0.00022997,2]
[315450010,1709040655019,-1792.39,0.00022997,2]
[315450011,1709040655028,-500.0,0.00022997,2]
[315450012,1709040655037,-500.0,0.00022997,2]
[315450013,1709040655046,-500.0,0.00022997,2]
[315450014,1709040655056,-500.0,0.00022997,2]
[315450015,1709040655065,-500.0,0.00022997,2]
[315450016,1709040655074,-500.0,0.00022997,2]
[315450017,1709040655083,-500.0,0.00022997,2]
[315450018,1709040655093,-500.0,0.00022997,2]
[315450019,1709040655102,-500.0,0.00022997,2]
[315450020,1709040655112,-500.0,0.00022997,2]
[315450021,1709040655122,-500.0,0.00022997,2]
[315450022,1709040655134,-258.99797784,0.00022997,2]
[315450023,1709040655144,-500.0,0.00022997,2]
[315450024,1709040655154,-500.0,0.00022997,2]
[315450025,1709040655164,-500.0,0.00022997,2]
[315450026,1709040655175,-500.0,0.00022997,2]
[315450027,1709040655185,-586.14892933,0.00022997,2]
[315450028,1709040655195,-500.0,0.00022997,2]
[315450029,1709040655205,-500.0,0.00022997,2]
[315450030,1709040655215,-500.0,0.00022998,2]
[315450031,1709040655224,-500.0,0.00022998,2]
[315450032,1709040655234,-500.0,0.00022998,2]
[315450033,1709040655244,-500.0,0.00022998,2]
[315450034,1709040655253,-500.0,0.00022998,2]
[315450035,1709040655263,-500.0,0.00022998,2]
[315450036,1709040655273,-500.0,0.00022998,2]
[315450037,1709040655282,-500.0,0.00022998,2]
[315450038,1709040655291,-500.0,0.00022998,2]
[315450039,1709040655301,-500.0,0.00022998,2]
[315450040,1709040655310,-500.0,0.00022998,2]
[315450041,1709040655320,-552.69203861,0.00022998,2]
[315450042,1709040655330,-500.0,0.00022998,2]
[315450043,1709040655339,-580.1679839,0.00022998,2]
[315450044,1709040655348,-500.0,0.00022998,2]
[315450045,1709040655359,-500.0,0.00022998,2]
[315450046,1709040655368,-500.0,0.00022998,2]
[315450047,1709040655377,-500.0,0.00022998,2]
[315450048,1709040655387,-560.32,0.00022998,2]
[315450049,1709040655396,-560.32,0.00022998,2]
[315450050,1709040655406,-500.0,0.00022998,2]
[315450051,1709040655417,-500.0,0.00022998,2]
[315450052,1709040655427,-590.3,0.00022998,2]
[315450053,1709040655436,-590.3,0.00022998,2]
[315450054,1709040655445,-500.0,0.00022998,2]
[315450055,1709040655455,-500.0,0.00022998,2]
[315450056,1709040655464,-500.0,0.00022998,2]
[315450057,1709040655473,-500.0,0.00022998,2]
[315450058,1709040655482,-500.0,0.00022998,2]
[315450059,1709040655491,-500.0,0.00022998,2]
[315450060,1709040655500,-535.59,0.00022998,2]
[315450061,1709040655510,-535.59,0.00022998,2]
[315450062,1709040655519,-500.0,0.00022998,2]
[315450063,1709040655528,-500.0,0.00022998,2]
[315450064,1709040655537,-500.0,0.00022998,2]
[315450065,1709040655547,-500.0,0.00022998,2]
[315450066,1709040655556,-500.0,0.00022998,2]
[315450067,1709040655565,-500.0,0.00022998,2]
[315450068,1709040655575,-500.0,0.00022998,2]
[315450069,1709040655584,-500.0,0.00022998,2]
[315450070,1709040655593,-500.0,0.00022998,2]
[315450071,1709040655602,-500.0,0.00022998,2]
[315450072,1709040655611,-500.0,0.00022998,2]
[315450073,1709040655620,-500.0,0.00022998,2]
[315450074,1709040655629,-500.0,0.00022998,2]
[315450075,1709040655639,-500.0,0.00022998,2]
[315450076,1709040655648,-500.0,0.00022998,2]
[315450077,1709040655657,-500.0,0.00022998,2]
[315450078,1709040655668,-500.0,0.00022998,2]
[315450079,1709040655677,-500.0,0.00022998,2]
[315450080,1709040655686,-500.0,0.00022998,2]
[315450081,1709040655695,-303.30960209,0.00022998,2]
[315450082,1709040655704,-500.0,0.00022998,2]
[315450083,1709040655714,-500.0,0.00022998,2]
[315450084,1709040655724,-500.0,0.00022998,2]
[315450085,1709040655734,-500.0,0.00022998,2]
[315450086,1709040655744,-500.0,0.00022998,2]
[315450087,1709040655753,-500.0,0.00022998,2]
[315450088,1709040655763,-500.0,0.00022998,2]
[315450089,1709040655772,-500.0,0.00022998,2]
[315450090,1709040655782,-500.0,0.00022998,2]
[315450091,1709040655791,-500.0,0.00022998,2]
[315450092,1709040655800,-573.19,0.00022998,2]
[315450093,1709040655809,-573.19,0.00022998,2]
[315450094,1709040655820,-625.4,0.00022998,2]
[315450095,1709040655829,-625.4,0.00022998,2]
[315450096,1709040655838,-562.98,0.00022998,2]
[315450097,1709040655847,-562.98,0.00022998,2]
[315450098,1709040655856,-500.0,0.00022998,2]
[315450099,1709040655865,-181.79393715,0.00022998,2]
[315450100,1709040655875,-150.0,0.00022998,2]
[315450101,1709040655884,-150.0,0.00022998,2]
[315450102,1709040655893,-500.0,0.00022998,2]
[315450103,1709040655903,-500.0,0.00022998,2]
[315450104,1709040655912,-184.08830509,0.00022998,2]
[315450105,1709040655923,-500.0,0.00022998,2]
[315450106,1709040655933,-505.4675915,0.00022998,2]
[315450107,1709040655942,-500.0,0.00022998,2]
[315450108,1709040655951,-500.0,0.00022998,2]
[315450109,1709040655960,-500.0,0.00022998,2]
[315450110,1709040655969,-296.11854573,0.00022998,2]
[315450111,1709040655979,-500.0,0.00022998,2]
[315450112,1709040655987,-500.0,0.00022998,2]
[315450113,1709040655996,-500.0,0.00022998,2]
[315450114,1709040656006,-500.0,0.00022998,2]
[315450115,1709040656016,-500.0,0.00022998,2]
[315450116,1709040656025,-500.0,0.00022998,2]
[315450117,1709040656035,-500.0,0.00022998,2]
[315450118,1709040656045,-562.09,0.00022998,2]
[315450119,1709040656054,-500.0,0.00022998,2]
[315450120,1709040656063,-562.09,0.00022998,2]
[315450121,1709040656073,-500.0,0.00022998,2]
[315450122,1709040656083,-500.0,0.00022998,2]
[315450123,1709040656092,-500.0,0.00022998,2]
[315450124,1709040656102,-500.0,0.00022998,2]
[315450125,1709040656112,-500.0,0.00022998,2]
[315450126,1709040656121,-500.0,0.00022998,2]
[315450127,1709040656134,-500.0,0.00022998,2]
[315450128,1709040656144,-500.0,0.00022998,2]
[315450129,1709040656153,-500.0,0.00022998,2]
[315450130,1709040656163,-666.4,0.00022998,2]
[315450131,1709040656175,-666.4,0.00022998,2]
[315450132,1709040656186,-500.0,0.00022998,2]
[315450133,1709040656195,-500.0,0.00022998,2]
[315450134,1709040656206,-500.0,0.00022998,2]
[315450135,1709040656216,-500.0,0.00022998,2]
[315450136,1709040656228,-500.0,0.00022998,2]
[315450137,1709040656237,-500.0,0.00022998,2]
[315450138,1709040656247,-592.81,0.00022998,2]
[315450139,1709040656256,-592.81,0.00022998,2]
[315450140,1709040656267,-555.22,0.00022998,2]
[315450141,1709040656277,-555.22,0.00022998,2]
[315450142,1709040656287,-500.0,0.00022998,2]
[315450143,1709040656299,-500.0,0.00022998,2]
[315450144,1709040656309,-500.0,0.00022998,2]
[315450145,1709040656318,-500.0,0.00022998,2]
[315450146,1709040656328,-500.0,0.00022998,2]
[315450147,1709040656338,-500.0,0.00022998,2]
[315450148,1709040656347,-155.2497061,0.00022998,2]
[315450149,1709040656357,-500.0,0.00022998,2]
[315450150,1709040656367,-500.0,0.00022998,2]
[315450151,1709040656377,-552.22,0.00022998,2]
[315450152,1709040656386,-552.22,0.00022998,2]
[315450153,1709040656395,-500.0,0.00022998,2]
[315450154,1709040656404,-1259.03,0.00022998,2]
[315450155,1709040656414,-500.0,0.00022998,2]
[315450156,1709040656425,-500.0,0.00022998,2]
[315450157,1709040656434,-1259.03,0.00022998,2]
[315450158,1709040656444,-500.0,0.00022998,2]
[315450159,1709040656454,-500.0,0.00022998,2]
[315450160,1709040656464,-500.0,0.00022998,2]
[315450161,1709040656474,-500.0,0.00022998,2]
[315450162,1709040656483,-557.03,0.00022998,2]
[315450163,1709040656493,-557.03,0.00022998,2]
[315450164,1709040656502,-626.15,0.00022998,2]
[315450165,1709040656511,-626.15,0.00022998,2]
[315450166,1709040656521,-535.25,0.00022998,2]
[315450167,1709040656531,-535.25,0.00022998,2]
[315450168,1709040656541,-982.52,0.00022998,2]
[315450169,1709040656551,-982.52,0.00022998,2]
[315450170,1709040656560,-500.0,0.00022998,2]
[315450171,1709040656570,-500.0,0.00022998,2]
[315450172,1709040656579,-500.0,0.00022998,2]
[315450173,1709040656588,-500.0,0.00022998,2]
[315450174,1709040656597,-500.0,0.00022998,2]
[315450175,1709040656606,-186.73638495,0.00022998,2]
[315450176,1709040656615,-500.0,0.00022998,2]
[315450177,1709040656624,-1182.69,0.00022998,2]
[315450178,1709040656634,-1182.69,0.00022998,2]
[315450179,1709040656642,-500.0,0.00022998,2]
[315450180,1709040656651,-500.0,0.00022998,2]
[315450181,1709040656661,-500.0,0.00022998,2]
[315450182,1709040656671,-500.0,0.00022998,2]
[315450183,1709040656680,-500.0,0.00022998,2]
[315450184,1709040656689,-500.0,0.00022998,2]
[315450185,1709040656698,-500.0,0.00022998,2]
[315450186,1709040656707,-500.0,0.00022998,2]
[315450187,1709040656716,-500.0,0.00022998,2]
[315450188,1709040656725,-500.0,0.00022998,2]
[315450189,1709040656735,-963.78,0.00022998,2]
[315450190,1709040656744,-963.78,0.00022998,2]
[315450191,1709040656753,-500.0,0.00022998,2]
[315450192,1709040656763,-500.0,0.00022998,2]
[315450193,1709040656772,-500.0,0.00022998,2]
[315450194,1709040656782,-500.0,0.00022998,2]
[315450195,1709040656791,-500.0,0.00022998,2]
[315450196,1709040656800,-500.0,0.00022998,2]
[315450197,1709040656810,-500.0,0.00022998,2]
[315450198,1709040656820,-1474.21,0.00022998,2]
[315450199,1709040656829,-500.0,0.00022998,2]
[315450200,1709040656839,-1474.21,0.00022998,2]
[315450201,1709040656849,-638.9,0.00022998,2]
[315450202,1709040656861,-638.9,0.00022998,2]
[315450203,1709040656871,-500.0,0.00022998,2]
[315450204,1709040656883,-500.0,0.00022998,2]
[315450205,1709040656892,-500.0,0.00022998,2]
[315450206,1709040656903,-500.0,0.00022998,2]
[315450207,1709040656916,-1872.26,0.00022998,2]
[315450208,1709040656932,-1872.26,0.00022998,2]
[315450209,1709040656944,-500.0,0.00022998,2]
[315450210,1709040656954,-500.0,0.00022998,2]
[315450211,1709040656964,-500.0,0.00022998,2]
[315450212,1709040656974,-500.0,0.00022998,2]
[315450213,1709040656984,-500.0,0.00022998,2]
[315450214,1709040656993,-387.15629071,0.00022998,2]
[315450215,1709040657003,-500.0,0.00022998,2]
[315450216,1709040657013,-500.0,0.00022998,2]
[315450217,1709040657022,-500.0,0.00022998,2]
[315450218,1709040657032,-336.0986647,0.00022998,2]
[315450219,1709040657042,-446.4,0.00022998,2]
[315450220,1709040657052,-500.0,0.00022998,2]
[315450221,1709040657063,-500.0,0.00022998,2]
[315450222,1709040657074,-500.0,0.00022998,2]
[315450223,1709040657085,-500.0,0.00022998,2]
[315450224,1709040657095,-5264.36,0.00022998,2]
[315450225,1709040657106,-5264.36,0.00022998,2]
[315450226,1709040657122,-500.0,0.00022998,2]
[315450227,1709040657132,-276.47214357,0.00022998,2]
[315450228,1709040657143,-500.0,0.00022998,2]
[315450229,1709040657154,-500.0,0.00022998,2]
[315450230,1709040657164,-500.0,0.00022998,2]
[315450231,1709040657178,-500.0,0.00022998,2]
[315450232,1709040657190,-500.0,0.00022998,2]
[315450233,1709040657201,-500.0,0.00022998,2]
[315450234,1709040657211,-500.0,0.00022998,2]
[315450235,1709040657222,-500.0,0.00022998,2]
[315450236,1709040657232,-500.0,0.00022998,2]
[315450237,1709040657242,-500.0,0.00022998,2]
[315450238,1709040657252,-500.0,0.00022998,2]
[315450239,1709040657262,-500.0,0.00022998,2]
[315450240,1709040657272,-500.0,0.00022998,2]
[315450241,1709040657281,-500.0,0.00022998,2]
[315450242,1709040657291,-1371.68,0.00022998,2]
[315450243,1709040657300,-1371.68,0.00022998,2]
[315450244,1709040657310,-500.0,0.00022998,2]
[315450245,1709040657320,-500.0,0.00022998,2]
[315450246,1709040657330,-165.03371556,0.00022998,2]
[315450247,1709040657341,-1402.99,0.00022998,2]
[315450248,1709040657350,-1402.99,0.00022998,2]
[315450249,1709040657360,-500.0,0.00022998,2]
[315450250,1709040657370,-705.0,0.00022998,2]
[315450251,1709040657379,-705.0,0.00022998,2]
[315450252,1709040657388,-600.3,0.00022998,2]
[315450253,1709040657398,-600.3,0.00022998,2]
[315450254,1709040657408,-222.12452327,0.00022999,2]
[315450255,1709040657421,-630.31619451,0.00023,2]
[315450256,1709040657430,-2437.4631776,0.00023,2]
[315450257,1709040657799,-2898.17431484,0.00023,2]
[315450258,1709040657812,-488.71999998,0.00023,2]
[315450259,1709040657836,-1170.5942869,0.00021901,2]
[315450260,1709040657849,-22729.4057131,0.00021901,2]
[315450261,1709040657859,-500.0,0.00022898,2]
[315450262,1709040657868,-3120.64966539,0.00023,2]
[315450263,1709040657878,-500.0,0.00023,2]
[315450264,1709040657888,-150.0,0.00023,2]
[315450265,1709040657898,-150.58147572,0.00023001,2]
[315450266,1709040657909,-160.22,0.00023014,2]
[315450267,1709040657921,-455.319,0.00023077,2]
[315450268,1709040657930,-956.0,0.00023077,2]
[315450269,1709040657941,-710.0,0.00023077,2]
[315450270,1709040657950,-1310.51361216,0.00023079,2]
[315450271,1709040657961,-150.58147572,0.00023102,2]
[315450272,1709040657970,-157.87,0.00023128,2]
[315450273,1709040657979,-161.07,0.00023166,2]
[315450274,1709040657988,-1310.51361216,0.00023171,2]
[315450275,1709040657997,-150.62544003,0.00023179,2]
[315450276,1709040658010,-279.37455997,0.00023179,2]
[315450277,1709040658019,-496.07797627,0.00023179,2]
[315450278,1709040658031,-351.92202373,0.00023179,2]
[315450279,1709040658040,-1007.0,0.00023179,2]
[315450280,1709040658049,-276.0,0.00023179,2]
[315450281,1709040658058,-322.0,0.00023179,2]
[315450282,1709040658067,-1138.0,0.00023179,2]
[315450283,1709040658077,-562.90381312,0.00023179,2]
[315450284,1709040658088,-2343.09618688,0.00023179,2]
[315450285,1709040658099,-338.0,0.00023179,2]
[315450286,1709040658108,-1454.0,0.00023179,2]
[315450287,1709040658120,-392.0,0.00023179,2]
[315450288,1709040658129,-162.0,0.00023179,2]
[315450289,1709040658138,-302.0,0.00023179,2]
[315450290,1709040658148,-1852.969,0.00023179,2]
[315450291,1709040658159,-150.103,0.00023179,2]
[315450292,1709040658167,-7441.0,0.00023179,2]
[315450293,1709040658177,-5442.224,0.00023179,2]
[315450294,1709040658187,-999.923,0.00023179,2]
[315450295,1709040658198,-4111.0,0.00023179,2]
[315450296,1709040658208,-17511.676,0.00023179,2]
[315450297,1709040658217,-222.12452327,0.00023179,2]
[315450298,1709040658227,-2905.71774962,0.000232,10]
[315450299,1709040658237,-150.58147572,0.00023203,2]
[315450300,1709040658246,-160.22,0.00023233,2]
[315450301,1709040658256,-174.390067,0.00023238,2]
[315450302,1709040658265,-1310.51361216,0.00023262,2]
[315450303,1709040658274,-2000.0,0.000233,2]
[315450304,1709040658284,-500.0,0.000233,2]
[315450305,1709040658293,-150.58147572,0.00023304,2]
[315450306,1709040658302,-166.1,0.00023314,2]
[315450307,1709040658311,-1310.51361216,0.00023353,2]
[315450308,1709040658322,-222.12452327,0.0002336,2]
[315450309,1709040658331,-150.58147572,0.00023406,2]
[315450310,1709040658340,-161.07,0.0002341,2]
[315450311,1709040658349,-1310.51361216,0.00023444,2]
[315450312,1709040658358,-160.22,0.00023452,2]
[315450313,1709040658367,-465.29,0.00023479,2]
[315450314,1709040658377,-150.58147572,0.00023507,2]
[315450315,1709040658385,-1310.51361216,0.00023535,2]
[315450316,1709040658394,-222.12452327,0.0002354,2]
[315450317,1709040658404,-150.58147572,0.00023608,2]
[315450318,1709040658413,-1310.51361216,0.00023626,2]
[315450319,1709040658424,-161.07,0.00023654,2]
[315450320,1709040658433,-160.22,0.00023671,2]
[315450321,1709040658442,-150.58147572,0.00023709,2]
[315450322,1709040658451,-1310.51361216,0.00023718,2]
[315450323,1709040658460,-222.12452327,0.0002372,2]
[315450324,1709040658469,-152.0,0.00023729,2]
[315450325,1709040658478,-152.0,0.00023729,2]
[315450326,1709040658487,-162.0,0.00023729,2]
[315450327,1709040658496,-150.0,0.0002373,2]
[315450328,1709040658505,-150.0,0.00023731,2]
[315450329,1709040658514,-150.0,0.00023741,2]
[315450330,1709040658523,-150.0,0.00023743,2]
[315450331,1709040658532,-6894.05344456,0.0002376,2]
[315450332,1709040658542,-152.9106692,0.0002376,2]
[315450333,1709040658550,-150.0,0.00023778,2]
[315450334,1709040658562,-150.0,0.00023783,2]
[315450335,1709040658571,-150.0,0.00023787,2]
[315450336,1709040658580,-500.0,0.00023797,2]
[315450337,1709040658589,-535.04294286,0.00023797,2]
[315450338,1709040658598,-500.0,0.00023797,2]
[315450339,1709040658607,-500.0,0.00023797,2]
[315450340,1709040658616,-500.0,0.00023797,2]
[315450341,1709040658625,-547.98345246,0.00023797,2]
[315450342,1709040658634,-500.0,0.00023797,2]
[315450343,1709040658643,-500.0,0.00023797,2]
[315450344,1709040658652,-500.0,0.00023797,2]
[315450345,1709040658661,-500.0,0.00023797,2]
[315450346,1709040658671,-500.0,0.00023797,2]
[315450347,1709040658680,-500.0,0.00023797,2]
[315450348,1709040658689,-500.0,0.00023797,2]
[315450349,1709040658698,-356.79789846,0.00023797,2]
[315450350,1709040658707,-500.0,0.00023797,2]
[315450351,1709040658716,-500.0,0.00023797,2]
[315450352,1709040658725,-500.0,0.00023797,2]
[315450353,1709040658734,-500.0,0.00023797,2]
[315450354,1709040658743,-500.0,0.00023797,2]
[315450355,1709040658752,-500.0,0.00023797,2]
[315450356,1709040658762,-500.0,0.00023797,2]
[315450357,1709040658771,-193.72127825,0.00023797,2]
[315450358,1709040658780,-607.68435656,0.00023797,2]
[315450359,1709040658789,-153.76809767,0.00023797,2]
[315450360,1709040658798,-500.0,0.00023797,2]
[315450361,1709040658808,-500.0,0.00023797,2]
[315450362,1709040658817,-500.0,0.00023797,2]
[315450363,1709040658826,-500.0,0.00023797,2]
[315450364,1709040658836,-284.48069606,0.00023798,2]
[315450365,1709040658846,-284.48069604,0.00023798,2]
[315450366,1709040658855,-2120.72868779,0.00023798,2]
[315450367,1709040658864,-284.48069604,0.00023798,2]
[315450368,1709040658873,-2120.72868773,0.00023798,2]
[315450369,1709040658883,-284.48069604,0.00023798,2]
[315450370,1709040658892,-2120.72868773,0.00023798,2]
[315450371,1709040658902,-284.48069604,0.00023798,2]
[315450372,1709040658911,-2120.72868773,0.00023798,2]
[315450373,1709040658924,-284.48069604,0.00023798,2]
[315450374,1709040658933,-2120.72868773,0.00023798,2]
[315450375,1709040658943,-284.48069604,0.00023798,2]
[315450376,1709040658954,-2120.72868773,0.00023798,2]
[315450377,1709040658964,-284.48069604,0.00023798,2]
[315450378,1709040658973,-2120.72868773,0.00023798,2]
[315450379,1709040658983,-284.48069604,0.00023798,2]
[315450380,1709040658992,-2120.72868773,0.00023798,2]
[315450381,1709040659002,-2120.72868773,0.00023798,2]
[315450382,1709040659011,-200.0,0.00023805,2]
[315450383,1709040659021,-800.0,0.00023805,2]
[315450384,1709040659031,-200.0,0.00023805,2]
[315450385,1709040659040,-500.0,0.00023805,2]
[315450386,1709040659050,-150.0,0.00023808,2]
[315450387,1709040659059,-1310.51361216,0.00023809,2]
[315450388,1709040659069,-150.0,0.0002381,2]
[315450389,1709040659079,-150.58147572,0.00023811,2]
[315450390,1709040659089,-150.0,0.00023832,2]
[315450391,1709040659098,-150.0,0.0002384,2]
[315450392,1709040659109,-150.0,0.00023845,2]
[315450393,1709040659119,-193.85401589,0.00023853,2]
[315450394,1709040659129,-150.0,0.00023861,2]
[315450395,1709040659142,-150.0,0.00023864,2]
[315450396,1709040659152,-150.0,0.00023868,2]
[315450397,1709040659161,-150.0,0.00023869,2]
[315450398,1709040659174,-150.0,0.00023878,2]
[315450399,1709040659185,-150.0,0.00023887,2]
[315450400,1709040659196,-160.22,0.0002389,2]
[315450401,1709040659206,-732.01912385,0.00023895,2]
[315450402,1709040659215,-150.0,0.00023896,2]
[315450403,1709040659226,-150.0,0.00023897,2]
[315450404,1709040659236,-732.01912384,0.00023898,2]
[315450405,1709040659245,-161.07,0.00023898,2]
[315450406,1709040659255,-150.0,0.00023898,2]
[315450407,1709040659265,-555.22,0.00023899,2]
[315450408,1709040659274,-547.26118457,0.00023899,2]
[315450409,1709040659284,-552.22,0.00023899,2]
[315450410,1709040659294,-557.03,0.00023899,2]
[315450411,1709040659304,-535.25,0.00023899,2]
[315450412,1709040659314,-500.0,0.00023899,2]
[315450413,1709040659323,-500.0,0.00023899,2]
[315450414,1709040659333,-1182.69,0.00023899,2]
[315450415,1709040659342,-500.0,0.00023899,2]
[315450416,1709040659351,-638.9,0.00023899,2]
[315450417,1709040659360,-500.0,0.00023899,2]
[315450418,1709040659370,-500.0,0.00023899,2]
[315450419,1709040659379,-500.0,0.00023899,2]
[315450420,1709040659388,-500.0,0.00023899,2]
[315450421,1709040659397,-1371.68,0.00023899,2]
[315450422,1709040659407,-561.94,0.00023899,2]
[315450423,1709040659416,-705.0,0.00023899,2]
[315450424,1709040659428,-600.3,0.00023899,2]
[315450425,1709040659437,-150.0,0.00023899,2]
[315450426,1709040659447,-1310.51361216,0.000239,2]
[315450427,1709040659456,-222.12452327,0.000239,2]
[315450428,1709040659465,-284.48069604,0.000239,2]
[315450429,1709040659475,-2120.72868773,0.000239,2]
[315450430,1709040659486,-150.0,0.00023903,2]
[315450431,1709040659495,-150.0,0.00023905,2]
[315450432,1709040659503,-150.58147572,0.00023912,2]
[315450433,1709040659513,-150.0,0.00023914,2]
[315450434,1709040659522,-150.0,0.00023921,2]
[315450435,1709040659659,-150.0,0.0002393,2]
[315450436,1709040659668,-150.0,0.00023947,2]
[315450437,1709040659680,-225.98280515,0.00023952,2]
[315450438,1709040659690,-424.3,0.00023956,2]
[315450439,1709040659698,-150.0,0.00023964,2]
[315450440,1709040659708,-150.0,0.00023968,2]
[315450441,1709040659719,-150.0,0.00023974,2]
[315450442,1709040659729,-160.57,0.00023975,2]
[315450443,1709040659738,-150.0,0.00023982,2]
[315450444,1709040659747,-150.0,0.00023986,2]
[315450445,1709040659757,-400.0,0.0002399,2]
[315450446,1709040659766,-150.0,0.00023992,2]
[315450447,1709040659775,-556.97,0.00023993,2]
[315450448,1709040659784,-500.0,0.00023993,2]
[315450449,1709040659793,-725.34,0.00023993,2]
[315450450,1709040659804,-1792.39,0.00023993,2]
[315450451,1709040659814,-500.0,0.00023993,2]
[315450452,1709040659824,-500.0,0.00023993,2]